Cogmind - Beta 17 @@@ ROGUE MODE // 2026.07.09 @ 08:02:07 Player: hanzu Result: Destroyed by G-34 Mercenary with Small Laser Performance ------------- Evolutions (0) 0 Regions Visited (2) 400 Robots Destroyed (24) 120 Value Destroyed (470) 470 Prototype IDs (0) 0 Alien Tech Used (0) 0 Bonus (0) 0 TOTAL SCORE: 990 Bonus ------- None Cogmind --------- Core Integrity 0/250 Matter 300/300 Energy 244/250 System Corruption 1% Temperature Cool (56) Movement Treading (240) Ox1 Location -10/Mines Parts ------- > --- POWER (1) -------- Ion Engine > --- PROPULSION (2) --- Light Treads > --- UTILITY (2) ------ Heat Sink Large Storage Unit > --- WEAPON (2) ------- Beam Cannon Beam Cannon > --- INVENTORY (15) --- Ion Engine Ion Engine Heat Sink High-capacity Matter Pod (170) Hardened Light Armor Plating Tractor Beam Beam Cannon Light Assault Rifle Light Assault Rifle Peak State ------------ > --- POWER ------------ Ion Engine > --- PROPULSION ------- Light Treads Light Treads > --- UTILITY ---------- Heat Sink Large Storage Unit > --- WEAPON ----------- EM Pulse Gun Beam Cannon > --- INVENTORY -------- Ion Engine Light Ion Engine Hardened Light Armor Plating Tractor Beam Beam Cannon Beam Cannon Beam Cannon Light Assault Rifle Light Assault Rifle [Rating: 8] Favorites ----------- Power Ion Engine Engine Ion Engine Propulsion Light Treads Treads Light Treads Utility Heat Sink Device Heat Sink Storage Large Storage Unit Weapon Beam Cannon Energy Gun EM Pulse Gun Energy Cannon Beam Cannon Ballistic Gun Light Assault Rifle Build | -11 -10 -10 ------- Run | Yrd Mat Min Slots Evolved . | . . . Power . | . . . Propulsion . | . . . Utility . | . . . Weapon . | . . . Parts Attached 18 | 6 10 2 Power 2 | 1 1 . Engine 2 | 1 1 . Core . | . . . Reactor . | . . . Propulsion 4 | 2 1 1 Treads 4 | 2 1 1 Leg . | . . . Wheel . | . . . Hover . | . . . Flight . | . . . Utility 4 | 1 3 . Device 2 | . 2 . Storage 2 | 1 1 . Processor . | . . . Hackware . | . . . Protection . | . . . Artifact . | . . . Weapon 8 | 2 5 1 Energy Gun 1 | . 1 . Energy Cannon 3 | . 2 1 Ballistic Gun 4 | 2 2 . Ballistic Cannon . | . . . Launcher . | . . . Special Weapon . | . . . Impact Weapon . | . . . Slashing Weapon . | . . . Piercing Weapon . | . . . Special Melee Weapon . | . . . Unidentified Prototypes . | . . . Parts Lost 4 | . . 4 Power . | . . . Propulsion 2 | . . 2 Utility . | . . . Weapon 2 | . . 2 Highest Loss Streak 4 | . . 4 To Critical Strikes . | . . . Average Backups 6 | . 5 9 Power 1 | . 1 2 Propulsion . | . . . Utility 1 | . 1 4 Weapon 2 | . 2 3 Tool/Special . | . . . Unused Backups 8 | . 1 7 Power 3 | . 1 2 Propulsion . | . . . Utility 4 | . . 4 Weapon 1 | . . 1 Tool/Special . | . . . Average Slot Usage (%) 97 | . 99 86 Engine 14 | . 14 14 Treads 25 | . 28 15 Device 13 | . 13 14 Storage 14 | . 14 14 Energy Gun 3 | . 3 1 Energy Cannon 12 | . 8 26 Ballistic Gun 12 | . 15 . Peak Build Rating 8 | 6 8 8 Average Rating 7 | 4 7 7 On Entrance 4 | . 6 8 Avg Prop Armor Cover (%) . | . . . Naked Turns . | . . . Heaviest Build 32 | 13 32 32 Greatest Support 40 | 40 40 40 Greatest Overweight (x) 1 | . . 1 Average Overweight (x) . | . . . Largest Inventory Capacity 15 | 8 15 15 Average Capacity 11 | 6 11 15 Most Carried 12 | 1 12 12 Average Carried 6 | . 5 9 Final Capacity 15 | 8 15 15 Final Carried 12 | 1 12 9 Class Distribution -------------------- 100% | Mutant Dominant Class ---------------- Mutant | -10/Materials Mutant | -10/Mines Resources | -11 -10 -10 ----------- Run | Yrd Mat Min Matter Collected 589 | 235 181 173 Remotely . | . . . Salvage Created 704 | . 531 173 Parts 47 | . 31 16 Haulers Intercepted 2 | . 2 . Recyclers Shooed . | . . . Parts Field Recycled . | . . . Retrieved Matter . | . . . Parts Self-Destructed . | . . . Prevented . | . . . Parts Restored . | . . . Kills | -11 -10 -10 ------- Run | Yrd Mat Min Combat Hostiles Destroyed 17 | . 12 5 Guns 10 | . 9 1 Cannons 7 | . 3 4 Classes Destroyed 6 | . 5 1 Worker 1 | . . 1 Hauler 2 | . 2 . Operator 1 | . 1 . Watcher 3 | . 3 . Swarmer 9 | . 6 3 Grunt 8 | . 6 2 Best Kill Streak 6 | . 5 6 Combat Bots Only 5 | . 5 5 Max Kills in Single Turn 2 | . 2 1 Gunslinging . | . . . Exploded . | . . . Melee . | . . . Uniques/NPCs Destroyed . | . . . Combat | -11 -10 -10 -------- Run | Yrd Mat Min Hostile Shots Fired 160 | . 92 68 Missed 38 | . 24 14 Hits 122 | . 68 54 Projectile 122 | . 68 54 Critical Strikes 3 | . 2 1 Damage Taken 1224 | . 659 565 Core 251 | . 119 132 Absorbed by Shields . | . . . Regen/Repaired (Parts) 35 | . 35 . Core Remaining (%) 100 | 100 . . Volleys Fired 59 | . 45 14 Largest 2 | . 2 2 Hottest 120 | . 120 120 Shots Fired 117 | . 90 27 Gun 72 | . 67 5 Cannon 45 | . 23 22 Launcher . | . . . Special . | . . . Kinetic 50 | . 50 . Thermal 45 | . 23 22 Explosive . | . . . Electromagnetic 22 | . 17 5 Robot Hit Streak 11 | . 9 11 Robot Miss Streak 4 | . 4 2 Penetration Max . | . . . Secondary Targets 2 | . 2 . Max Gunslinging Chain 1 | . 1 . Shots Hit Robots 74 | . 56 18 Core Hits 35 | . 28 7 Critical Kills 1 | . 1 . Critical Parts Destroyed 1 | . 1 . Critical Strikes 4 | . 3 1 Destroy 2 | . 2 . Corrupt 2 | . 1 1 Melee Attacks . | . . . Impact . | . . . Slashing . | . . . Piercing . | . . . Sneak Attacks . | . . . Combat Hostiles . | . . . Follow-up Attacks . | . . . Damage Inflicted 1078 | . 731 347 Guns 532 | . 483 49 Cannons 546 | . 248 298 Explosions . | . . . Melee . | . . . Ramming . | . . . Kinetic 339 | . 339 . Thermal 546 | . 248 298 Explosive . | . . . Electromagnetic 193 | . 144 49 Impact . | . . . Slashing . | . . . Piercing . | . . . Highest Corruption 1 | . 1 1 Average Corruption 1 | . 1 1 Corruption Purged . | . . . Corruption Blocked . | . . . Effects 12 | . 10 2 Message Errors 3 | . 3 . Matter Fused 1 | . 1 . Heat Flow Errors 3 | . 3 . Energy Discharges 1 | . 1 . Data Loss (minor) 3 | . 2 1 Data Loss (major) 1 | . . 1 Overload Shots . | . . . Overflow Damage . | . . . Projectiles . | . . . Explosions . | . . . Melee . | . . . Knockbacks . | . . . Impact . | . . . Kinetic . | . . . Secondary . | . . . Self-Inflicted Damage . | . . . Shots . | . . . Rammed . | . . . Targets Rammed . | . . . Kicked . | . . . Crushed . | . . . Highest Temperature 270 | . 266 270 Average Temperature 61 | . 49 89 Received Heat Transfer 402 | . 189 213 Effects 1 | . . 1 Interference 1 | . . 1 Siege Activations . | . . . Martial Activations . | . . . Shielding Activations . | . . . Robots Disrupted . | . . . Combat Hostiles . | . . . Robots Corrupted . | . . . Combat Hostiles . | . . . Parts Fried 2 | . 2 . Impact Corruptions . | . . . Robots Melted . | . . . Combat Hostiles . | . . . Parts Melted 4 | . 1 3 Heat Transferred 1147 | . 518 629 Parts Sabotaged . | . . . Parts Stolen . | . . . Parts Stripped . | . . . Power Chain Reactions . | . . . Alert | -11 -10 -10 ------- Run | Yrd Mat Min Maximum Alert Level . | . . . Low Security (%) 100 | 100 100 100 Level 1 . | . . . Level 2 . | . . . Level 3 . | . . . Level 4 . | . . . Level 5 . | . . . High Security . | . . . Max Security . | . . . Peak Influence 119 | . 119 85 Initial . | . . . Average 24 | . 25 22 Influence Increases 482 | . 357 125 Destroy 0b10 Robot/C 340 | . 240 100 Destroy 0b10 Robot/NC 35 | . 30 5 Destroy Leader 70 | . 50 20 Successful Hack 37 | . 37 . Influence Decreases 482 | . 357 125 Time Decay 380 | . 275 105 Lost Part 20 | . . 20 Purge Threat 82 | . 82 . Squads Dispatched 1 | . 1 . Investigation 1 | . 1 . Extermination . | . . . Reinforcement . | . . . Assault . | . . . Garrison . | . . . Intercept . | . . . Searches Triggered . | . . . Construction Impeded . | . . . Haulers Reinforced . | . . . Active Scanning Responses . | . . . Cargo Convoy Interrupts . | . . . Stealth | -11 -10 -10 --------- Run | Yrd Mat Min Distress Signals . | . . . Communications Jammed . | . . . Distress Signals . | . . . Times Spotted 23 | . 16 7 Peak Tracking Total 5 | . 4 5 Tactical Retreats . | . . . Traps | -11 -10 -10 ------- Run | Yrd Mat Min Traps Triggered 2 | . 2 . Indirectly . | . . . Trap Hack Attempts . | . . . Triggered . | . . . Disarmed . | . . . Reprogrammed . | . . . Reused . | . . . Traps Extracted . | . . . Installed . | . . . Triggered . | . . . Machines | -11 -10 -10 ---------- Run | Yrd Mat Min Machines Disabled . | . . . Max in Single Turn . | . . . Machines Repaired . | . . . Machines Dismantled . | . . . Machines Sabotaged . | . . . Overloaded Fab Kills . | . . . Hacking | -11 -10 -10 --------- Run | Yrd Mat Min Machines Accessed 11 | . 11 . Terminals 8 | . 8 . Fabricators . | . . . Repair Stations 1 | . 1 . Recycling Units 2 | . 2 . Scanalyzers . | . . . Garrison Access . | . . . Total Hacks 37 | . 37 . Successful 23 | . 23 . Failed 14 | . 14 . Catastrophic 1 | . 1 . Database Lockouts . | . . . Manual 25 | . 25 . Terminals 25 | . 25 . Fabricators . | . . . Repair Stations 3 | . 3 . Recycling Units 9 | . 9 . Scanalyzers . | . . . Garrison Access . | . . . Terminal Hacks 6 | . 6 . Robot Analysis 3 | . 3 . Branch Access Points 1 | . 1 . Unreport Threat 1 | . 1 . Locate Traps 1 | . 1 . Fabricator Hacks . | . . . Repair Station Hacks 2 | . 2 . Scan Component 1 | . 1 . Repair 1 | . 1 . Recycling Unit Hacks 3 | . 3 . Process 1 | . 1 . Retrieve Matter 1 | . 1 . Retrieve Components 1 | . 1 . Scanalyzer . | . . . Garrison Access Hacks . | . . . Unauthorized Hacks 12 | . 12 . Terminals 9 | . 9 . Botnet 4 | . 4 . Skim 5 | . 5 . Fabricators . | . . . Repair Stations . | . . . Recycling Units 3 | . 3 . Reject 1 | . 1 . Recyclers 1 | . 1 . Mask 1 | . 1 . Scanalyzers . | . . . Garrison Access . | . . . Data Cores Recovered 1 | . 1 . Used 1 | . 1 . Hacking Detections 10 | . 10 . Full Trace Events 1 | . 1 . Feedback Events . | . . . Feedback Blocked . | . . . Robot Schematics Acquired . | . . . Robots Built . | . . . Authchips . | . . . Time . | . . . Total Robot Build Rating . | . . . Part Schematics Acquired . | . . . Parts Built . | . . . Authchips . | . . . Time . | . . . Total Part Build Rating . | . . . Part Studies Acquired . | . . . Parts Repaired 1 | . 1 . Time 36 | . 36 . Parts Recycled . | . . . Recycled Matter 51 | . 51 . Retrieved Matter 51 | . 51 . Retrieved Components 10 | . 10 . Parts Scanalyzed . | . . . Part Schematics Acquired . | . . . Parts Damaged . | . . . Bothacking | -11 -10 -10 ------------ Run | Yrd Mat Min Used RIF Installer . | . . . Robots Hacked . | . . . Non-combat . | . . . Combat . | . . . Robot Hacks Applied . | . . . Relay Couplers Released . | . . . Fabnet Peak Effective % . | . . . Robots Rewired . | . . . Allies Hacked . | . . . Hacks Repelled . | . . . Allies | -11 -10 -10 -------- Run | Yrd Mat Min Total Allies . | . . . Largest Group . | . . . Highest-Rated Group . | . . . Highest-Rated Ally . | . . . Total Orders . | . . . Ally Attacks . | . . . Total Damage . | . . . Kills . | . . . Allies Corrupted . | . . . Allies Melted . | . . . Intel | -11 -10 -10 ------- Run | Yrd Mat Min Active Infowar (turns) 800 | . 800 . Sensors 800 | . 800 . Robot Analysis Total 3 | . 3 . Derelict Logs Recovered 1 | . . 1 Drone Launches . | . . . Drone Recoveries . | . . . Exploration | -11 -10 -10 ------------- Run | Yrd Mat Min Turns Passed 1948 | 54 1519 375 Spaces Moved 977 | 30 808 139 Core 3 | 3 . . Treads 974 | 27 808 139 Legs . | . . . Wheels . | . . . Hover . | . . . Flight . | . . . Fastest Speed 50 | 50 160 160 Average Speed 170 | 149 160 238 Slowest Speed 240 | 160 160 240 Overloaded Moves . | . . . Propulsion Burnouts . | . . . Robots Hopped . | . . . Potential Cave-ins . | . . . Cave-ins Triggered . | . . . Exploration Rate (%) 45 | 3 97 37 Regions Visited 2 Branch Regions 1 Pre-discovered Areas 3 | . 3 . Known Exits Taken 1 | . 1 . Unknown Exits Taken 1 | 1 . . Scrap Searched . | . . . Spaces Dug . | . . . Terrain Destroyed . | . . . Melee . | . . . Projectile . | . . . AOE . | . . . Terrain Rammed . | . . . Walls Destroyed . | . . . Machines Disabled . | . . . Actions | -11 -10 -10 --------- Run | Yrd Mat Min Total 1142 | 36 950 156 Wait 68 | . 68 . Move 975 | 29 807 139 Hop . | . . . Pick Up 12 | 1 11 . Fast Attach 10 | 6 4 . Attach 3 | . . 3 Detach 2 | . 2 . Swap 6 | . 6 . Drop 7 | . 7 . Fire 59 | . 45 14 Melee . | . . . Ram . | . . . Kick . | . . . Crush . | . . . Escape Stasis . | . . . Rewire . | . . . Trap . | . . . Miscellaneous . | . . . Route ------- -11/Scrapyard -10/Materials (discovered 5 exits: *Mat x3 / *Min / Sub) -10/Mines (discovered 2 exits: Mat x2) History --------- Turn | Location | Event 24 | -11/Scrapyard | Discovered new exit (range 15) 55 | -11/Scrapyard | Entered Materials 268 | -10/Materials | Discovered new exit (range 5) 306 | -10/Materials | Build established: Mutant 1025 | -10/Materials | Discovered new exit (range 3) 1155 | -10/Materials | Learned Storage garrison access intel 1203 | -10/Materials | Discovered new exit (range 10) 1224 | -10/Materials | Identified exit to Mines 1224 | -10/Materials | Identified exit to Subcaves 1330 | -10/Materials | Learned location of Recycling (-9) 1352 | -10/Materials | Repaired Corrupted Lgt. Treads 1432 | -10/Materials | Learned Storage trap positions 1480 | -10/Materials | Learned location of Storage (-9) 1574 | -10/Materials | Entered Mines 1575 | -10/Mines | Identified exit to Materials 1583 | -10/Mines | Core integrity fell below 50% 1612 | -10/Mines | Core integrity fell below 20% 1639 | -10/Mines | Lost 4 parts (2n2w) 1849 | -10/Mines | Learned Materials emergency access door positions 1949 | -10/Mines | Destroyed by G-34 Mercenary with Small Laser Last Messages --------------- 01618_ G-34 Mercenary destroyed. 01619_ Overheating: System interference. 01619_ Beam Cannon temporarily disabled. 01620_ K-01 Serf collects debris. 01621_ Acquired 35 matter. 01624_ K-01 Serf collects debris. 01625_ Acquired 24 matter. 01627_ K-01 Serf collects debris. 01628_ Acquired 36 matter. 01630_ K-01 Serf collects debris. 01640_ Acquired 18 matter. 01641_ K-01 Serf collects debris. 01642_ Acquired 60 matter. 01646_ K-01 Serf collects debris. 01768_ System corrupted: Substantial component data lost. 01814_ System corrupted: Component data lost. 01818_ K-01 Serf collects debris. 01849_ Acquired derelict log, extracted data. Data stored: Materials emergency access points. 01943_ Critical hit (Burn: +37). Map ----- +----------------------------------------------------+ | ?????# ???????????????????????????????????????? | | ?????# #???????????????????????????????????????? | | ????## #???????????????????????????????????????? | | ???## ##??????????????????????????????????????? | | ??## #####??????????????????????????????????? | | ??# ##?????????????????????????????????? | | ??# #?????????????????????????????????? | | ??# #?????????????????????????????????? | | ### ## #?????????????????????????????????? | | ## ### #?????????????????????????????????? | | # #?## #????????? ????????????????????? | | #??## ##????????? ??????????????????? | | ####???# ##???? ??? ??????????????????? | | ##?????# #?????? ??" ??????????????????? | | #?????# #?????? """ #??????????????????? | | #?????# #??????? """ ##?????????????????? | | ##?????# #??????? #?????????????????? | | ##??????# #???????# #?????????????????? | | #??####?# #???????# ##????????????????? | | #### ### #??????## ##???????????????? | | ## ## #??????# #???????????????? | | ## #??????# #???????????????? | | # ### #??????# ?????????????????? | | ####### ##??????# #??????????????????? | | ?????# ##?###### #???????????????????? | | ?????# ### ## @ ##???????????